Cogmind - Beta 15 @@@ ROGUE MODE // 2025.05.30 @ 21:41:02 Player: Epsilon 11 Result: Destroyed by S-10 Pest with Light Assault Rifle Performance ------------- Evolutions (2) 1000 Regions Visited (8) 1600 Robots Destroyed (87) 435 Value Destroyed (3614) 3614 Prototype IDs (23) 460 Alien Tech Used (0) 0 Bonus (3288) 3288 TOTAL SCORE: 10397 Bonus ------- High Alert Combat Kills 719 Follower Combat Kills 369 Entered Garrisons 400 Used RIF Installer 1500 Aligned with FarCom 300 Cogmind --------- Core Integrity 0/550 Matter 278/300 Energy 160/160 System Corruption 2% Temperature Cool (0) Movement Walking (120) Location -8/Garrison Parts ------- > --- POWER (2) -------- Light Nuclear Core > --- PROPULSION (2) --- Improved Carbon-fiber Leg Improved Carbon-fiber Leg > --- UTILITY (5) ------ Large Storage Unit Improved Target Analyzer Core Analyzer Reaction Control System Core Shielding > --- WEAPON (2) ------- Beam Rifle Makeshift Hammer > --- INVENTORY (15) --- Advanced Heat Sink Advanced Heat Sink Structural Scanner Machine Analyzer Improved Utility Shielding Improved Heavy Armor Plating Relay Coupler [NC] (24) Relay Coupler [Grunt] (31) Relay Coupler [Sentry] (23) Relay Coupler [Hunter] (18) Relay Coupler [Behemoth] (8) Firepult Heavy Machine Gun Peak State ------------ > --- POWER ------------ Light Nuclear Core Light Nuclear Core > --- PROPULSION ------- Improved Carbon-fiber Leg Improved Carbon-fiber Leg > --- UTILITY ---------- Large Storage Unit Improved Target Analyzer Core Analyzer Core Shielding Improved Utility Shielding > --- WEAPON ----------- Beam Rifle Heavy Machine Gun > --- INVENTORY -------- Carbon-fiber Leg Carbon-fiber Leg Advanced Heat Sink Advanced Heat Sink Structural Scanner Machine Analyzer Reaction Control System Relay Coupler [NC] Relay Coupler [Grunt] Relay Coupler [Sentry] Relay Coupler [Hunter] Relay Coupler [Behemoth] Firepult Makeshift Hammer [Rating: 41] Favorites ----------- Power Light Nuclear Core Engine Ion Engine Power Core Light Nuclear Core Propulsion Improved Treads Treads Improved Treads Leg Improved Carbon-fiber Leg Wheel Wheel Utility Large Storage Unit Device Improved Heat Sink Storage Large Storage Unit Processor Improved Target Analyzer Protection Power Shielding Weapon Makeshift Hammer Energy Gun Shock Rifle Energy Cannon Beam Cannon Ballistic Gun Heavy Machine Gun Ballistic Cannon Improved Light Cannon Launcher Grenade Launcher Impact Weapon Makeshift Hammer Build | -11 -10 -10 -10 -9 -8 -8 -8 -8 ------- Run | Yrd Mat Min Exi Min Mat Gar Mat Gar Slots Evolved 4 | . . . . . 4 . . . Power 1 | . . . . . 1 . . . Propulsion . | . . . . . . . . . Utility 3 | . . . . . 3 . . . Weapon . | . . . . . . . . . Parts Attached 72 | 6 4 7 . . 11 9 5 30 Power 13 | 1 . 1 . . 2 2 1 6 Engine 7 | 1 . 1 . . 1 1 1 2 Core 6 | . . . . . 1 1 . 4 Reactor . | . . . . . . . . . Propulsion 17 | 2 1 3 . . 3 1 2 5 Treads 7 | . . . . . 3 1 2 1 Leg 4 | . . . . . . . . 4 Wheel 6 | 2 1 3 . . . . . . Hover . | . . . . . . . . . Flight . | . . . . . . . . . Utility 24 | 1 2 . . . 4 5 . 12 Device 10 | . . . . . 4 2 . 4 Storage 2 | 1 1 . . . . . . . Processor 2 | . . . . . . . . 2 Hackware . | . . . . . . . . . Protection 10 | . 1 . . . . 3 . 6 Artifact . | . . . . . . . . . Weapon 18 | 2 1 3 . . 2 1 2 7 Energy Gun 7 | 2 . . . . 1 . 1 3 Energy Cannon 1 | . . 1 . . . . . . Ballistic Gun 3 | . . . . . . . . 3 Ballistic Cannon 1 | . . . . . . . 1 . Launcher 5 | . 1 1 . . 1 1 . 1 Special Weapon . | . . . . . . . . . Impact Weapon 1 | . . 1 . . . . . . Slashing Weapon . | . . . . . . . . . Piercing Weapon . | . . . . . . . . . Special Melee Weapon . | . . . . . . . . . Unidentified Prototypes . | . . . . . . . . . Parts Lost 28 | . 2 5 . 2 . 3 . 16 Power 6 | . . 1 . . . 1 . 4 Propulsion 5 | . 1 1 . 1 . . . 2 Utility 5 | . . . . . . 1 . 4 Weapon 12 | . 1 3 . 1 . 1 . 6 Highest Loss Streak 7 | . 1 2 . 2 . 2 . 7 To Critical Strikes . | . . . . . . . . . Average Backups 11 | 1 6 9 10 9 9 12 12 13 Power . | . 1 . 1 1 . . . . Propulsion 2 | 1 2 2 2 2 3 3 1 1 Utility 6 | . 1 4 5 5 3 6 8 9 Weapon 2 | . 1 1 1 1 2 2 3 2 Tool/Special . | . . . . . . . . . Unused Backups 18 | . . . 2 1 2 2 1 10 Power 1 | . . . . 1 . . . . Propulsion 3 | . . . . . 1 . . 2 Utility 12 | . . . 2 . . 2 1 7 Weapon 2 | . . . . . 1 . . 1 Tool/Special . | . . . . . . . . . Average Slot Usage (%) 92 | . 95 93 94 75 96 95 99 85 Engine 8 | . 14 13 14 14 9 9 9 4 Core 6 | . . . . . 9 8 9 6 Treads 11 | . . . . . 17 18 18 9 Leg 2 | . . . . . . . . 7 Wheel 6 | . 27 27 28 16 . . . . Device 12 | . . . . . 26 13 17 12 Storage 10 | . 14 14 14 14 8 9 9 9 Protection 15 | . 10 14 14 14 9 20 17 17 Energy Gun 8 | . 27 3 . . 6 4 6 10 Launcher 3 | . . 12 14 2 . 5 2 . Impact Weapon 4 | . . . 8 14 9 6 8 3 Peak Build Rating 41 | 6 7 12 14 14 28 34 34 41 Average Rating 24 | 3 6 8 11 11 24 29 30 30 On Entrance 15 | . 6 7 8 14 11 28 34 29 Naked Turns . | . . . . . . . . . Heaviest Build 52 | 12 29 31 32 29 44 52 51 48 Greatest Support 46 | 20 20 20 20 10 46 46 46 46 Greatest Overweight (x) 3 | . 2 1 1 2 3 1 1 1 Average Overweight (x) . | . . 1 1 2 . . . . Largest Inventory Capacity 15 | 8 15 15 15 15 15 15 15 15 Average Capacity 14 | 6 13 15 15 15 14 15 15 15 Most Carried 15 | 4 9 15 15 15 15 15 15 15 Average Carried 13 | 2 6 11 14 13 13 14 14 14 Final Capacity 15 | 8 15 15 15 15 15 15 15 15 Final Carried 15 | 3 7 15 15 13 15 15 15 15 Class Distribution -------------------- 71% | Mutant 26% | Scavenger-Mutant Dominant Class ---------------- Mutant | -10/Materials Mutant | -10/Mines Mutant | -10/Exiles Mutant | -9/Mines Scavenger-Mutant | -8/Materials Mutant | -8/Garrison Mutant | -8/Materials Mutant | -8/Garrison Resources | -11 -10 -10 -10 -9 -8 -8 -8 -8 ----------- Run | Yrd Mat Min Exi Min Mat Gar Mat Gar Matter Collected 2016 | 178 107 367 14 . 95 474 38 743 Remotely . | . . . . . . . . . Salvage Created 2983 | . 230 265 . . 122 1132 38 1196 Parts 136 | . 18 14 . . 5 51 3 45 Haulers Intercepted 1 | . . . . . 1 . . . Recyclers Shooed . | . . . . . . . . . Parts Field Recycled . | . . . . . . . . . Retrieved Matter . | . . . . . . . . . Parts Self-Destructed . | . . . . . . . . . Prevented . | . . . . . . . . . Kills | -11 -10 -10 -10 -9 -8 -8 -8 -8 ------- Run | Yrd Mat Min Exi Min Mat Gar Mat Gar Combat Hostiles Destroyed 93 | . 7 21 . . 5 30 1 29 Melee 1 | . . . . . . . . 1 Guns 26 | . 7 . . . . . . 19 Cannons 1 | . . . . . . . 1 . AOE 52 | . . 20 . . 4 23 . 5 Classes Destroyed 13 | . 4 2 . . 1 4 . 2 Worker 2 | . 1 . . . 1 . . . Builder 1 | . . 1 . . . . . . Hauler 1 | . . . . . 1 . . . Watcher 2 | . 1 . . . . . . 1 Swarmer 22 | . 3 3 . . 4 8 . 4 Grunt 35 | . 4 6 . . 1 13 . 11 Brawler 3 | . . . . . . 3 . . Duelist 3 | . . . . . . 1 . 2 Sentry 12 | . . . . . . 3 1 8 Specialist 1 | . . . . . . . . 1 Hunter 4 | . . . . . . 2 . 2 Programmer 1 | . . . . . . . . 1 Assembled 12 | . . 12 . . . . . . Best Kill Streak 8 | . 3 6 . . 4 7 1 8 Combat Bots Only 8 | . 3 6 . . 4 7 1 8 Max Kills in Single Turn 4 | . 1 3 . . 3 4 1 2 Gunslinging . | . . . . . . . . . Exploded 4 | . . 3 . . 3 4 . 2 Melee 1 | . . . . . . . . 1 Uniques/NPCs Destroyed . | . . . . . . . . . Combat | -11 -10 -10 -10 -9 -8 -8 -8 -8 -------- Run | Yrd Mat Min Exi Min Mat Gar Mat Gar Hostile Shots Fired 393 | . 50 28 . 18 6 68 6 217 Missed 132 | . 17 10 . 6 2 22 3 72 Hits 261 | . 33 18 . 12 4 46 3 145 Melee 17 | . . 2 . . . 3 . 12 Projectile 244 | . 33 16 . 12 4 43 3 133 AOE 7 | . . . . . . . . 7 Critical Strikes 5 | . . . . . . 2 . 3 Actively Blocked 1 | . . . . . . 1 . . Damage Taken 4335 | . 371 522 . 99 65 760 46 2472 Core 793 | . 71 123 . 49 23 140 14 373 Absorbed by Shields . | . . . . . . . . . Redirected to Shielding 351 | . 9 8 . 1 . 92 11 230 Regen/Repaired (Parts) 169 | . . . . . 84 . 85 . Core Remaining (%) 51 | 100 . . . 2 . . . . Volleys Fired 225 | . 22 30 . 1 2 26 3 141 Largest 2 | . 2 2 . 1 1 2 2 2 Hottest 134 | . 100 110 . 30 36 86 98 134 Shots Fired 333 | . 43 35 . 1 2 40 6 206 Gun 234 | . 42 5 . . . 11 3 173 Cannon 28 | . . 5 . . . . 3 20 Launcher 71 | . 1 25 . 1 2 29 . 13 Special . | . . . . . . . . . Kinetic 26 | . . . . . . . 3 23 Thermal 225 | . 42 10 . . . . 3 170 Explosive 46 | . 1 25 . 1 2 11 . 6 Electromagnetic 36 | . . . . . . 29 . 7 Robot Hit Streak 31 | . 7 13 . . 2 10 10 31 Robot Miss Streak 3 | . 3 3 . 2 . 2 . 3 Penetration Max . | . . . . . . . . . Secondary Targets 1 | . 1 . . . . . . . Max Gunslinging Chain 1 | . 1 . . . . . . . Shots Hit Robots 225 | . 31 23 . . 9 35 6 121 Core Hits 157 | . 14 36 . . 4 48 2 53 Critical Kills . | . . . . . . . . . Critical Parts Destroyed 5 | . . 1 . . . 3 . 1 Critical Strikes 19 | . 5 2 . . . 3 . 9 Burn 11 | . 5 1 . . . . . 5 Destroy 1 | . . . . . . . . 1 Blast 1 | . . . . . . . . 1 Smash 6 | . . 1 . . . 3 . 2 Melee Attacks 104 | . . 3 . . 18 51 2 30 Impact 104 | . . 3 . . 18 51 2 30 Slashing . | . . . . . . . . . Piercing . | . . . . . . . . . Sneak Attacks 5 | . . . . . 3 1 . 1 Combat Hostiles 1 | . . . . . . 1 . . Follow-up Attacks . | . . . . . . . . . Damage Inflicted 9806 | . 414 1412 . 155 752 3706 104 3263 Guns 2091 | . 387 61 . . . 71 48 1524 Cannons 381 | . . 70 . . . . 56 255 Explosions 5408 | . . 1176 . 155 229 2850 . 998 Melee 1871 | . . 78 . . 522 785 . 486 Ramming 55 | . 27 27 . . 1 . . . Kinetic 353 | . . . . . . . 56 297 Thermal 2318 | . 387 131 . . . 270 48 1482 Explosive 3973 | . . 1176 . 155 229 1782 . 631 Electromagnetic 1236 | . . . . . . 869 . 367 Impact 1871 | . . 78 . . 522 785 . 486 Slashing . | . . . . . . . . . Piercing . | . . . . . . . . . Highest Corruption 2 | . . . . . . . . 2 Average Corruption 1 | . . . . . . . . 1 Corruption Purged . | . . . . . . . . . Corruption Blocked . | . . . . . . . . . Effects 11 | . . . . . . . . 11 Matter Fused 3 | . . . . . . . . 3 Heat Flow Errors 1 | . . . . . . . . 1 Energy Discharges 4 | . . . . . . . . 4 Data Loss (minor) 1 | . . . . . . . . 1 Alerts 1 | . . . . . . . . 1 Weapon Failures 1 | . . . . . . . . 1 Overload Shots . | . . . . . . . . . Overflow Damage 718 | . . 42 . 8 234 283 . 151 Projectiles . | . . . . . . . . . Explosions 123 | . . 4 . 8 27 76 . 8 Melee 595 | . . 38 . . 207 207 . 143 Knockbacks 4 | . . . . . 2 . . 2 Impact 2 | . . . . . 2 . . . Kinetic 2 | . . . . . . . . 2 Secondary . | . . . . . . . . . Self-Inflicted Damage 349 | . 13 216 . 11 23 9 . 77 Shots 14 | . . 8 . 1 1 1 . 3 Rammed 4 | . 2 1 . . 1 . . . Targets Rammed 4 | . 2 1 . . 1 . . . Kicked . | . . . . . . . . . Crushed . | . . . . . . . . . Highest Temperature 288 | . 288 117 . . . 8 63 180 Average Temperature 61 | . 90 39 . . . 3 34 54 Received Heat Transfer 1109 | . 162 83 . . 9 306 9 540 Effects 2 | . 2 . . . . . . . Interference 2 | . 2 . . . . . . . Siege Activations . | . . . . . . . . . Martial Activations . | . . . . . . . . . Shielding Activations . | . . . . . . . . . Robots Disrupted . | . . . . . . . . . Combat Hostiles . | . . . . . . . . . Robots Corrupted 12 | . . 1 . . 1 7 . 3 Combat Hostiles 11 | . . 1 . . 1 7 . 2 Parts Fried 17 | . . 1 . . 1 11 . 4 Impact Corruptions 23 | . . 2 . . 6 10 . 5 Robots Melted 1 | . . . . . . . . 1 Combat Hostiles 1 | . . . . . . . . 1 Parts Melted 18 | . 7 . . . . . . 11 Heat Transferred 6135 | . 1517 407 . . . 474 111 3626 Parts Sabotaged . | . . . . . . . . . Parts Stolen . | . . . . . . . . . Parts Stripped . | . . . . . . . . . Power Chain Reactions 8 | . . . . . . 8 . . Alert | -11 -10 -10 -10 -9 -8 -8 -8 -8 ------- Run | Yrd Mat Min Exi Min Mat Gar Mat Gar Maximum Alert Level 4 | . . . . . . 3 2 4 Low Security (%) 38 | 100 100 100 . 100 100 16 . . Level 1 14 | . . . . . . 22 39 18 Level 2 15 | . . . . . . 33 60 10 Level 3 23 | . . . . . . 27 . 47 Level 4 8 | . . . . . . . . 23 Level 5 . | . . . . . . . . . High Security . | . . . . . . . . . Max Security . | . . . . . . . . . Peak Influence 1509 | . 91 179 . 15 124 1078 525 1509 Initial 525 | . . 27 . . 1 57 525 226 Average 455 | . 39 121 . 6 15 507 428 817 Influence Increases 3608 | . 241 452 . 35 184 1071 37 1588 Destroy 0b10 Robot/C 1900 | . 140 200 . . 100 600 20 840 Destroy 0b10 Robot/NC 35 | . 10 5 . . 10 5 . 5 Destroy Leader 184 | . 32 50 . . 12 40 10 40 Allied During Kill 74 | . . 6 . . . . . 68 Trap Triggered on 0b10 40 | . . . . 10 . 20 . 10 Successful Hack 103 | . 22 . . . 18 37 5 21 Disable Machine 60 | . . 30 . . 15 . . 15 Anti-Garrison Action 650 | . . . . . . 250 . 400 Destroy Structure 427 | . 7 161 . 10 29 89 2 129 Lose Combat Pursuer 135 | . 30 . . 15 . 30 . 60 Influence Decreases 2134 | . 170 432 91 30 101 81 767 462 Entered New Map 845 | . . 44 91 . 4 31 553 122 Time Decay 799 | . 150 318 . 20 97 . 214 . Lost Part 270 | . 20 50 . 10 . 30 . 160 Lost Ally 220 | . . 20 . . . 20 . 180 Squads Dispatched 3 | . 2 . . . . . 1 . Investigation . | . . . . . . . . . Extermination . | . . . . . . . . . Reinforcement 3 | . 2 . . . . . 1 . Assault . | . . . . . . . . . Garrison . | . . . . . . . . . Intercept . | . . . . . . . . . Searches Triggered . | . . . . . . . . . Construction Impeded . | . . . . . . . . . Haulers Reinforced . | . . . . . . . . . Active Scanning Responses . | . . . . . . . . . Cargo Convoy Interrupts . | . . . . . . . . . Stealth | -11 -10 -10 -10 -9 -8 -8 -8 -8 --------- Run | Yrd Mat Min Exi Min Mat Gar Mat Gar Distress Signals . | . . . . . . . . . Communications Jammed . | . . . . . . . . . Distress Signals . | . . . . . . . . . Times Spotted 133 | . 17 28 . 4 6 26 1 51 Peak Tracking Total 10 | . 7 10 . 4 4 7 1 6 Tactical Retreats 8 | . 1 2 . 1 . 1 . 3 Traps | -11 -10 -10 -10 -9 -8 -8 -8 -8 ------- Run | Yrd Mat Min Exi Min Mat Gar Mat Gar Traps Triggered 7 | . . . . . . 4 . 3 Indirectly 2 | . . . . . . 2 . . Trap Hack Attempts . | . . . . . . . . . Triggered . | . . . . . . . . . Disarmed . | . . . . . . . . . Reprogrammed . | . . . . . . . . . Reused 4 | . . . . 1 . 2 . 1 Traps Extracted . | . . . . . . . . . Installed 4 | . . . . 1 . 2 . 1 Triggered 4 | . . . . 1 . 2 . 1 Most Traps Carried 4 | . . 4 4 4 3 3 1 1 Machines | -11 -10 -10 -10 -9 -8 -8 -8 -8 ---------- Run | Yrd Mat Min Exi Min Mat Gar Mat Gar Machines Disabled 7 | . . 2 . . 1 3 . 1 Max in Single Turn 1 | . . 1 . . 1 1 . 1 Garrison Relay 3 | . . . . . . 3 . . Machines Repaired . | . . . . . . . . . Machines Dismantled . | . . . . . . . . . Machines Sabotaged . | . . . . . . . . . Overloaded Fab Kills . | . . . . . . . . . Hacking | -11 -10 -10 -10 -9 -8 -8 -8 -8 --------- Run | Yrd Mat Min Exi Min Mat Gar Mat Gar Machines Accessed 23 | . 5 . 2 . 7 5 2 2 Terminals 16 | . 5 . . . 4 5 . 2 Fabricators . | . . . . . . . . . Repair Stations 2 | . . . . . 1 . 1 . Recycling Units 1 | . . . . . 1 . . . Scanalyzers . | . . . . . . . . . Garrison Access 2 | . . . . . 1 . 1 . Total Hacks 62 | . 20 . 2 . 21 9 6 4 Successful 37 | . 8 . 2 . 17 3 5 2 Failed 25 | . 12 . . . 4 6 1 2 Catastrophic 5 | . 2 . . . . 2 . 1 Database Lockouts . | . . . . . . . . . Manual 38 | . 20 . 1 . 16 1 . . Terminals 44 | . 20 . . . 11 9 . 4 Fabricators . | . . . . . . . . . Repair Stations 8 | . . . . . 3 . 5 . Recycling Units 6 | . . . . . 6 . . . Scanalyzers . | . . . . . . . . . Garrison Access 2 | . . . . . 1 . 1 . Terminal Hacks 10 | . 2 . 2 . 1 3 . 2 Record 1 | . . . 1 . . . . . Open Door 2 | . . . . . . 1 . 1 Branch Access Points 1 | . 1 . . . . . . . Emergency Access Points 1 | . . . . . . . . 1 Terminal Index 2 | . 1 . . . 1 . . . Garrison Registry 1 | . . . . . . 1 . . Security Stations 1 | . . . . . . 1 . . Proto ID Catalog 1 | . . . 1 . . . . . Fabricator Hacks . | . . . . . . . . . Repair Station Hacks 6 | . . . . . 2 . 4 . Scan Component 3 | . . . . . 1 . 2 . Repair 3 | . . . . . 1 . 2 . Recycling Unit Hacks 2 | . . . . . 2 . . . Report Inventory 1 | . . . . . 1 . . . Retrieve Components 1 | . . . . . 1 . . . Scanalyzer . | . . . . . . . . . Garrison Access Hacks 2 | . . . . . 1 . 1 . Unlock Access 2 | . . . . . 1 . 1 . Unauthorized Hacks 17 | . 6 . . . 11 . . . Terminals 12 | . 6 . . . 6 . . . Botnet 4 | . 2 . . . 2 . . . Operators 2 | . 1 . . . 1 . . . Skim 6 | . 3 . . . 3 . . . Fabricators . | . . . . . . . . . Repair Stations 1 | . . . . . 1 . . . Mechanics 1 | . . . . . 1 . . . Recycling Units 4 | . . . . . 4 . . . Monitor 1 | . . . . . 1 . . . Reject 1 | . . . . . 1 . . . Recyclers 1 | . . . . . 1 . . . Mask 1 | . . . . . 1 . . . Scanalyzers . | . . . . . . . . . Garrison Access . | . . . . . . . . . Data Cores Recovered . | . . . . . . . . . Used . | . . . . . . . . . Hacking Detections 19 | . 5 . . . 7 4 1 2 Full Trace Events 1 | . 1 . . . . . . . Feedback Events . | . . . . . . . . . Feedback Blocked . | . . . . . . . . . Robot Schematics Acquired . | . . . . . . . . . Robots Built . | . . . . . . . . . Authchips . | . . . . . . . . . Time . | . . . . . . . . . Total Robot Build Rating . | . . . . . . . . . Part Schematics Acquired . | . . . . . . . . . Parts Built . | . . . . . . . . . Authchips . | . . . . . . . . . Time . | . . . . . . . . . Total Part Build Rating . | . . . . . . . . . Parts Repaired 3 | . . . . . 1 . 2 . Time 90 | . . . . . 26 . 64 . Parts Recycled . | . . . . . . . . . Recycled Matter . | . . . . . . . . . Retrieved Matter . | . . . . . . . . . Retrieved Components 2 | . . . . . 2 . . . Parts Scanalyzed . | . . . . . . . . . Part Schematics Acquired . | . . . . . . . . . Parts Damaged . | . . . . . . . . . Bothacking | -11 -10 -10 -10 -9 -8 -8 -8 -8 ------------ Run | Yrd Mat Min Exi Min Mat Gar Mat Gar Used RIF Installer 3 | . . . . . . 2 . 1 Program Shield 1 | . . . . . . 1 . . Autooverride 1 | . . . . . . . . 1 Robots Hacked . | . . . . . . . . . Non-combat . | . . . . . . . . . Combat . | . . . . . . . . . Robot Hacks Applied . | . . . . . . . . . Relay Couplers Released 12 | . . . . . . 12 . . Machine Destruction 12 | . . . . . . 12 . . Fabnet Peak Effective % . | . . . . . . . . . Robots Rewired 9 | . . . . . . . . 9 Allies Hacked 2 | . . . . . . . . 2 Hacks Repelled . | . . . . . . . . . Allies | -11 -10 -10 -10 -9 -8 -8 -8 -8 -------- Run | Yrd Mat Min Exi Min Mat Gar Mat Gar Total Allies 12 | . . 2 . . . 1 . 9 Largest Group 4 | . . 1 . . . 1 . 4 Highest-Rated Group 113 | . . 31 . . . 20 . 113 Highest-Rated Ally 40 | . . 31 . . . 20 . 40 Total Orders 4 | . . . . . . . . 4 GUARD 4 | . . . . . . . . 4 Ally Attacks 64 | . . 13 . . . . . 51 Total Damage 1332 | . . 166 . . . . . 1166 Kills 15 | . . 2 . . . . . 13 Allies Corrupted . | . . . . . . . . . Allies Melted . | . . . . . . . . . Intel | -11 -10 -10 -10 -9 -8 -8 -8 -8 ------- Run | Yrd Mat Min Exi Min Mat Gar Mat Gar Active Infowar (turns) 1454 | . . . . . 1030 5 419 . Structural 931 | . . . . . 507 5 419 . Seismic 523 | . . . . . 523 . . . Robot Analysis Total . | . . . . . . . . . Derelict Logs Recovered 1 | . . 1 . . . . . . Drone Launches . | . . . . . . . . . Drone Recoveries . | . . . . . . . . . Exploration | -11 -10 -10 -10 -9 -8 -8 -8 -8 ------------- Run | Yrd Mat Min Exi Min Mat Gar Mat Gar Turns Passed 6719 | 37 418 703 297 48 1034 1414 448 2320 Spaces Moved 3445 | 33 300 594 307 41 468 596 141 965 Core 5 | 5 . . . . . . . . Treads 1616 | . . . . . 451 596 141 428 Legs 537 | . . . . . . . . 537 Wheels 1287 | 28 300 594 307 41 17 . . . Hover . | . . . . . . . . . Flight . | . . . . . . . . . Fastest Speed 50 | 50 80 95 95 110 125 160 160 120 Average Speed 142 | 75 91 95 95 110 158 190 182 161 Slowest Speed 240 | 80 110 95 95 110 160 240 240 240 Overloaded Moves . | . . . . . . . . . Propulsion Burnouts . | . . . . . . . . . Robots Hopped . | . . . . . . . . . Potential Cave-ins . | . . . . . . . . . Cave-ins Triggered . | . . . . . . . . . Exploration Rate (%) 51 | 4 71 98 61 20 35 80 12 83 Regions Visited 8 Branch Regions 3 Pre-discovered Areas 2 | . . 1 1 . . . . . Known Exits Taken 3 | . 1 . . . 1 . 1 . Unknown Exits Taken 4 | 1 . 1 1 1 . . . . Scrap Searched 1 | . . 1 . . . . . . Spaces Dug 12 | . . . . . 9 1 2 . Terrain Destroyed 324 | . 6 218 . 10 26 52 2 10 Melee 12 | . . . . . 9 1 2 . Projectile . | . . . . . . . . . AOE 312 | . 6 218 . 10 17 51 . 10 Terrain Rammed . | . . . . . . . . . Walls Destroyed . | . . . . . . . . . Machines Disabled . | . . . . . . . . . Actions | -11 -10 -10 -10 -9 -8 -8 -8 -8 --------- Run | Yrd Mat Min Exi Min Mat Gar Mat Gar Total 4805 | 42 398 692 313 44 738 780 320 1478 Wait 678 | . 66 41 . . 210 68 155 138 Move 3437 | 32 299 593 306 40 468 594 140 965 Hop . | . . . . . . . . . Pick Up 65 | 4 5 12 3 . 19 7 4 11 Fast Attach 42 | 5 1 2 . . 5 5 2 22 Attach 22 | 1 2 4 1 . 6 1 . 7 Detach 1 | . . . . . . . . 1 Swap 54 | . 1 4 . . 2 14 10 23 Drop 46 | . . 2 3 2 7 8 4 20 Fire 225 | . 22 30 . 1 2 26 3 141 Melee 104 | . . 3 . . 18 51 2 30 Ram 3 | . 2 1 . . . . . . Kick . | . . . . . . . . . Crush 1 | . . . . . 1 . . . Escape Stasis 9 | . . . . . . 4 . 5 Rewire 114 | . . . . . . . . 114 Trap 4 | . . . . 1 . 2 . 1 Miscellaneous . | . . . . . . . . . Route ------- -11/Scrapyard -10/Materials (discovered 2 exits: [*Mat] / *Min) -10/Mines (discovered 3 exits: [*Mat x2] / *Exi) -10/Exiles (discovered 2 exits: [*Min x2]) -9/Mines -8/Materials -8/Garrison (discovered 3 exits: *Mat x3) -8/Materials -8/Garrison (discovered 3 exits: [*Fac x2] / [*Mat]) History --------- Turn | Location | Event 27 | -11/Scrapyard | Discovered new exit (range 12) 38 | -11/Scrapyard | Entered Materials 216 | -10/Materials | Discovered new exit (range 10) 306 | -10/Materials | Build established: Mutant 414 | -10/Materials | Identified exit to Mines 456 | -10/Materials | Entered Mines 467 | -10/Mines | Escorted by a lone wolf Derelict 487 | -10/Mines | Learned location of Storage (-7) 490 | -10/Mines | Received a Rocket Launcher from a helpful Derelict 512 | -10/Mines | Discovered new exit (range 10) 521 | -10/Mines | A weapon hastily lodged in a ceiling crevice suddenly fell to the ground 527 | -10/Mines | Assembled infested the area 586 | -10/Mines | Learned Materials security intel 716 | -10/Mines | Core integrity fell below 50% 776 | -10/Mines | Found a hidden stash of uninstalled traps 878 | -10/Mines | Discovered new exit (range 4) 1009 | -10/Mines | Received a Mining Laser from a helpful Derelict 1087 | -10/Mines | Found a Scrap Suit stashed away for nefarious purposes 1153 | -10/Mines | Deemed a non-threat by the Exiles lab entrance 1154 | -10/Mines | Discovered new exit (range 5) 1159 | -10/Mines | Entered Exiles 1172 | -10/Exiles | Discovered new exit (range 15) 1185 | -10/Exiles | Met 8R-AWN 1198 | -10/Exiles | Met EX-HEX 1226 | -10/Exiles | Met EX-BIN 1239 | -10/Exiles | Aligned with FarCom system 1240 | -10/Exiles | Given EX-Vault access code 1262 | -10/Exiles | Opened EX-Vault 1270 | -10/Exiles | Found Firepult 1293 | -10/Exiles | Warned to stay clear of 0b10 Research branches 1414 | -10/Exiles | Met EX-DEC 1420 | -10/Exiles | Learned location of Zion (-6) 1448 | -10/Exiles | Discovered new exit (range 10) 1456 | -10/Exiles | Left Exiles lab with Firepult 1456 | -10/Exiles | Entered Mines 1458 | -9/Mines | Core integrity fell below 20% 1490 | -9/Mines | Discovered new exit (range 14) 1504 | -9/Mines | Entered Materials 1504 | -8/Materials | Evolved 4 slots: Power x1, Utility x3 1805 | -8/Materials | Build established: Scavenger-Mutant 1848 | -8/Materials | Repaired Lrg. Storage Unit 2318 | -8/Materials | Build established: Mutant 2538 | -8/Materials | Identified exit to Garrison 2538 | -8/Materials | Entered Garrison 2642 | -8/Garrison | Triggered checkpoint 2764 | -8/Garrison | Learned Materials security intel 2770 | -8/Garrison | Garrison Relay disabled 2895 | -8/Garrison | Triggered checkpoint 2979 | -8/Garrison | Discovered new exit (range 12) 3046 | -8/Garrison | Rescued a captive Derelict 3061 | -8/Garrison | Triggered checkpoint 3164 | -8/Garrison | Garrison Relay disabled 3232 | -8/Garrison | Triggered checkpoint 3329 | -8/Garrison | Discovered new exit (range 8) 3380 | -8/Garrison | Discovered new exit (range 6) 3380 | -8/Garrison | Discovered new exit (range 50) 3380 | -8/Garrison | Discovered new exit (range 46) 3501 | -8/Garrison | Installed Relay Interface Framework 3550 | -8/Garrison | Triggered checkpoint 3582 | -8/Garrison | Destroyed 7 combat bots 3770 | -8/Garrison | Triggered checkpoint 3845 | -8/Garrison | Expanded RIF knowledge: Program Shield 3864 | -8/Garrison | Garrison Relay disabled 3952 | -8/Garrison | Entered Materials 4298 | -8/Materials | Identified exit to Garrison 4339 | -8/Materials | Repaired Power Shielding? 4388 | -8/Materials | Repaired Shock Bomb Launcher 4400 | -8/Materials | Entered Garrison 4500 | -8/Garrison | Expanded RIF knowledge: Autooverride 4792 | -8/Garrison | Triggered checkpoint 5006 | -8/Garrison | Triggered checkpoint 5033 | -8/Garrison | Core integrity fell below 50% 5072 | -8/Garrison | Lost 4 allies 5077 | -8/Garrison | Lost 3 parts (1p1u1w) 5094 | -8/Garrison | Destroyed 8 combat bots 5174 | -8/Garrison | Discovered new exit (range 10) 5372 | -8/Garrison | Triggered checkpoint 5503 | -8/Garrison | Triggered checkpoint 5552 | -8/Garrison | Core integrity fell below 20% 5562 | -8/Garrison | Lost 7 parts (1p2n2u2w) 5589 | -8/Garrison | Discovered new exit (range 3) 5962 | -8/Garrison | Triggered checkpoint 5987 | -8/Garrison | Triggered checkpoint 6052 | -8/Garrison | Triggered checkpoint 6101 | -8/Garrison | Discovered new exit (range 10) 6146 | -8/Garrison | Triggered checkpoint 6217 | -8/Garrison | Build established: Scavenger-Mutant 6395 | -8/Garrison | Triggered checkpoint 6720 | -8/Garrison | Destroyed by S-10 Pest with Light Assault Rifle Last Messages --------------- 06481_ Dropped Lgt. Ion Engine. 06482_ Acquired 7 matter. 06486_ Acquired 10 matter. 06494_ Dropped Lgt. Assault Rifle. 06495_ Acquired Hvy. Machine Gun. 06500_ ALERT: Garrison interior compromised. 06502_ Acquired 8 matter. 06505_ Acquired Lgt. Nuclear Core. 06506_ Dropped Lgt. Nuclear Core. 06510_ Triggered Alarm Trap. 06510_ An alarm sounds. 06517_ System corrupted: Energy discharge (-60). 06523_ Dropped Carbon-fiber Leg. 06524_ Acquired Imp. Heavy Armor Plating. 06544_ System corrupted: Matter fused (-8). 06586_ Destroyed Imp. Hover Unit. 06590_ System corrupted: Energy discharge (-41). 06622_ W-25 Informer destroyed. 06624_ Acquired 18 matter. 06650_ ALERT: Garrison interior compromised. Map ----- +----------------------------------------------------+ | ????????????????????????????????????????????###### | | ????????????????????????????????????????????# | | ????+???????????????????????????????????????# | | ????????????????????????????????????????????# ### | | ??????????????+?????????????????????????????# #?? | | ????????????????????????????????????????????# #?? | | ????????????????????????????????????????????# #?? | | ????????????????????????????????????????????# #?? | | ????????????????????????????????????????????# #?? | | ????????????????????????++??????????????????# #?? | | ????????????????????????????????????????????# #?? | | ????????????????????####++#?????????????????# #?? | | +???????????????????? #?????????????????# #?? | | ????????????????????? #?????????????????# #?? | | ?????????????????????? #?????????????????# #?? | | ??????????????????????#!* #?????????????????# #?? | | ??????????????????????#%! #?????????????????# #?? | | ??????????????????????#/! #?????????????????# #?? | | ??????????############# #?????????????????# #?? | | ??????????#""""""""""## #?????????????????# #?? | | ??????????#"""!!!!!!"## #?????????????????# #?? | | ??????????#"" ## #?????????????????# #?? | | ??????????#"! ## #?????????????????#""### | | ??????????#"! ##s ############??????# | | ??????????#"! ; #??????#^ | | ??????????#"! @;= #??????# ### | | ??????????#"" ## s ### ##### #??????# #?? | | ??????????#"""!!!!!!"## s#?# #???# #??????# #?? | | ??????????#""""""""""## #?# #???# #??????# #?? | | ??????????############# #?# #???# #??????# #?? | | ??????????????????????# #?# #???# ######## #?? | | ??????????????????????# #?# #???# ## ## #?? | | ??????????????????????# ###+#####""## ## ##? | | ??????????????????????# ## | | ??????????????????????# | | ??????????????????????# | | ??????????????????????#######+#### ## ##=[ ## | | ???????????????????????????????### ## #% ## | | ???????????????????????????????+ [ | | ???????????????????????????????# ! | | ???????????????????????????????#% % % | | ???????????????????????????????# =%! %! | | ###????????????????????????????###%*=## # ## | | #T####?????????????????????????# % [%= # #? | | ########???????????????######*=%! ## | | !##"""""#???????????????# = %[= +? | | # ![### ##############???# #### = =%[ #? | | # % % #???# #??## %##= ## ##? | | # !=############ ### #???# #???# ## ## #?? | | ## ##??????????# #?# ##### ##### ######## #?? | +----------------------------------------------------+ Best States ------------- Heat Dissipation 69 Energy Generation 25 Energy Capacity 350 Matter Stores 300 Matter Capacity 300 Sight Range 16 Terrain Scan Density 10 Armor Coverage 150 Core Shielding 20 Power Shielding 33 Utility Shielding 66 Weapon Shielding 33 Evasion (%) 63 Target Analysis 6 Core Analysis 6 Recoil Reduction 2 Item Schematics ----------------- None Robot Schematics ------------------ None Fabricated ------------ Nothing Repaired ---------- Lrg. Storage Unit | 76% | -8/Materials Power Shielding | 24% | -8/Materials Shock Bomb Launcher | 37% | -8/Materials Alien Tech Used ----------------- None Achievements -------------- None Challenges ------------ None Game ------ Seed AntigravHelicalTerminator Manual? 0 Play Time 01:39:54 Cumulative 338.8 hours Start 2025.05.30 @ 12:13:54 End 2025.05.30 @ 21:41:02 Sessions 3 Manual Loads 0 Difficulty Rogue Special Mode None Game No. 161 Rogue 118 Adventurer 43 Explorer 0 Win Type - Total 6 Types 4/0/1/0/0/0/0/1/0/0 Lore% 84 Gallery% 73 Achievement% 66 Wizard Run 0 Options --------- Layout 0 ASCII 0 Keyboard 0 Movement Numpad Keybinds 0 Fullscreen 1 Font 24/Smallcaps Map View 76x50 Zoom Use 0% Tactical HUD 1 Map Filters NONE Filters NONE Steam 1 RUN: afc44d16-7ec8-45c7-bfce-c7a31ca3b570